bitfinex-derivatives/quotes_SOLF0:USTF0_20260202
["timestamp","ask_amount","ask_price","bid_price","bid_amount"]
[1770059433214,11.35359014,104.36,104.3,8.11816403]
[1770059433415,2.94313084,104.38,104.32,8.11816403]
[1770059433614,2.94313084,104.38,104.29,8.11816403]
[1770059433615,2.94313084,104.34,104.29,8.11816403]
[1770059433811,2.94313084,104.33,104.28,8.6379]
[1770059434018,8.4104593,104.34,104.27,8.11816403]
[1770059434019,2.94313084,104.32,104.27,8.11816403]
[1770059434417,8.4104593,104.33,104.27,8.11816403]
[1770059434614,8.4104593,104.31,104.25,8.11816403]
[1770059435014,8.4104593,104.31,104.26,8.11816403]
[1770059435417,8.4104593,104.33,104.26,8.11816403]
[1770059436313,8.4104593,104.31,104.24,8.11816403]
[1770059436714,8.4104593,104.32,104.25,8.11816403]
[1770059437117,15.76837892,104.31,104.25,8.11816403]
[1770059439127,8.4104593,104.31,104.25,8.11816403]
[1770059439722,8.4104593,104.31,104.26,8.6388]
[1770059440022,8.4104593,104.35,104.28,8.11816403]
[1770059440320,8.4104593,104.35,104.3,8.6362]
[1770059440521,8.4104593,104.35,104.3,16.75436403]
[1770059441331,8.4104593,104.35,104.28,16.75556403]
[1770059441826,17.0426593,104.35,104.28,8.11816403]
[1770059442326,8.4104593,104.34,104.28,8.11816403]
[1770059442521,8.4104593,104.33,104.26,8.11816403]
[1770059443825,8.4104593,104.31,104.24,16.75926403]
[1770059444225,8.4104593,104.31,104.25,8.11816403]
[1770059445423,17.0458593,104.31,104.25,8.11816403]
[1770059446826,8.6365,104.3,104.25,8.11816403]
[1770059448826,8.4104593,104.31,104.25,8.11816403]
[1770059451229,7.67741992,104.3,104.24,8.6411]
[1770059451734,7.67741992,104.3,104.25,8.14360929]
[1770059451935,7.35791962,104.32,104.26,8.14360929]
[1770059451936,23.67003954,104.32,104.26,8.14360929]
[1770059452331,7.67741992,104.31,104.26,8.14360929]
[1770059456737,7.67741992,104.31,104.26,16.78320929]
[1770059458732,7.67741992,104.29,104.22,8.14360929]
[1770059459839,7.67741992,104.29,104.23,8.14360929]
[1770059461330,16.31291992,104.31,104.24,8.14360929]
[1770059461636,7.67741992,104.33,104.25,8.14360929]
[1770059461836,7.67741992,104.33,104.26,8.14360929]
[1770059463341,7.67741992,104.33,104.27,16.78200929]
[1770059465238,7.67741992,104.33,104.28,8.14360929]
[1770059465544,69.35574131,104.36,104.29,8.14360929]
[1770059465545,7.67741992,104.35,104.29,8.14360929]
[1770059465742,7.67741992,104.37,104.3,8.14360929]
[1770059465942,1.66774495,104.4,104.31,8.14360929]
[1770059465943,7.67741992,104.39,104.31,8.14360929]
[1770059466142,7.67741992,104.39,104.34,8.14360929]
[1770059466340,10.07353343,104.41,104.34,8.14360929]
[1770059466537,7.67741992,104.41,104.34,8.14360929]
[1770059467041,7.67741992,104.41,104.34,16.77570929]
[1770059467240,7.67741992,104.41,104.34,8.14360929]
[1770059468147,7.67741992,104.41,104.34,16.77580929]
[1770059468548,7.67741992,104.41,104.34,8.14360929]
[1770059468748,7.67741992,104.41,104.35,8.632]
[1770059471849,7.67741992,104.41,104.34,8.14360929]
[1770059472851,7.67741992,104.41,104.35,8.14360929]
[1770059473651,9.34444586,104.45,104.36,8.14360929]
[1770059473954,7.67741992,104.45,104.36,8.14360929]
[1770059474349,2.9366375,104.44,104.38,8.14360929]
[1770059474655,10.61405742,104.44,104.38,8.14360929]
[1770059475151,2.9366375,104.43,104.37,8.14360929]
[1770059475352,2.9366375,104.45,104.39,8.14360929]
[1770059475854,8.6232,104.46,104.39,8.14360929]
[1770059476146,11.5598375,104.46,104.39,8.14360929]
[1770059476353,8.6232,104.46,104.39,8.14360929]
[1770059476548,16.30061992,104.46,104.39,8.14360929]
[1770059476952,16.30131992,104.45,104.39,8.14360929]
[1770059477150,7.67741992,104.44,104.39,8.14360929]
[1770059477953,16.30221992,104.44,104.39,8.14360929]
[1770059480950,8.6239,104.45,104.39,8.14360929]
[1770059481156,7.64733166,104.46,104.39,8.14360929]
[1770059481358,7.64733166,104.48,104.43,7.27241548]
[1770059481656,7.64733166,104.5,104.43,7.27241548]
[1770059482050,7.64733166,104.52,104.45,7.27241548]
[1770059482653,141.67013166,104.55,104.47,7.27241548]
[1770059482855,7.64733166,104.53,104.47,7.27241548]
[1770059483058,7.64733166,104.53,104.43,7.27241548]
[1770059483451,7.64733166,104.53,104.45,7.27241548]
[1770059484257,7.44622837,104.51,104.45,7.27241548]
[1770059485262,7.33849186,104.52,104.45,7.27241548]
[1770059485556,7.43025253,104.52,104.45,7.27241548]
[1770059486452,16.03090904,104.53,104.46,7.27241548]
[1770059487649,7.41340904,104.53,104.46,7.27241548]
[1770059487855,16.01600039,104.52,104.46,7.27241548]
[1770059491464,7.26664939,104.49,104.43,7.27241548]
[1770059491765,7.26664939,104.49,104.41,7.27241548]
[1770059492369,7.33849186,104.48,104.41,7.27241548]
[1770059492868,15.87220686,104.47,104.41,7.27241548]
[1770059493064,7.24960686,104.47,104.41,7.27241548]
[1770059493866,8.623,104.46,104.41,7.27241548]
[1770059494165,23.20379416,104.46,104.39,7.27241548]
[1770059494365,7.33849186,104.46,104.4,7.27241548]
[1770059494567,7.2423023,104.49,104.4,7.27241548]
[1770059494766,148.67999416,104.49,104.4,7.27241548]
[1770059495267,8.6223,104.47,104.4,7.27241548]
[1770059496372,148.63604987,104.47,104.41,7.27241548]
[1770059497270,7.15906247,104.46,104.39,7.27241548]
[1770059497475,14.49755433,104.45,104.39,7.27241548]
[1770059497671,141.32226247,104.44,104.35,7.27241548]
[1770059497973,14.49755433,104.43,104.35,7.27241548]
[1770059498471,8.6274,104.41,104.35,7.27241548]
[1770059498867,8.6274,104.41,104.36,7.27241548]
[1770059499067,14.45790892,104.45,104.36,7.27241548]
[1770059499270,148.58480892,104.47,104.37,7.27241548]
[1770059499670,7.11941706,104.47,104.39,7.27241548]
[1770059500471,141.44299186,104.49,104.41,7.27241548]
[1770059500774,14.39231636,104.49,104.41,7.27241548]
[1770059501077,8.6214,104.48,104.41,15.89951548]
[1770059501472,7.0538245,104.49,104.42,7.27241548]
[1770059502377,15.6744245,104.49,104.42,15.89851548]
[1770059502771,7.00395111,104.51,104.43,7.27241548]
[1770059502974,134.0441,104.54,104.44,7.27241548]
[1770059502975,7.00395111,104.53,104.44,7.27241548]
[1770059503778,7.00395111,104.53,104.45,15.89571548]
[1770059504276,7.00395111,104.53,104.46,8.6229]
[1770059504479,14.07573438,104.56,104.47,7.27241548]
[1770059504670,6.73724252,104.58,104.49,7.27241548]
[1770059504871,7.33849186,104.57,104.49,7.27241548]
[1770059505076,6.73724252,104.58,104.51,8.6189]
[1770059505275,6.72493091,104.6,104.51,7.27241548]
[1770059505479,14.06342277,104.59,104.51,7.27241548]
[1770059505680,14.06342277,104.59,104.51,15.89101548]
[1770059505980,14.06342277,104.59,104.52,7.27241548]
[1770059506173,6.70206047,104.62,104.53,15.88951548]
[1770059506379,14.04055233,104.6,104.54,7.27241548]
[1770059506776,6.6900572,104.62,104.54,7.27241548]
[1770059506973,6.6900572,104.62,104.55,7.27241548]
[1770059507276,7.33849186,104.61,104.55,7.27241548]
[1770059507581,14.02854906,104.59,104.52,7.27241548]
[1770059507880,6.6900572,104.58,104.5,15.89191548]
[1770059508682,7.33849186,104.57,104.5,15.89191548]
[1770059508880,13.97740645,104.57,104.5,7.27241548]
[1770059509272,14.11815847,104.55,104.47,7.36747593]
[1770059510481,6.75569684,104.54,104.47,7.36747593]
[1770059510882,14.082826,104.53,104.45,7.59653805]
[1770059512481,14.33122054,104.51,104.43,7.59653805]
[1770059512681,6.99272868,104.51,104.44,7.59653805]
[1770059513778,14.31994887,104.54,104.46,7.59653805]
[1770059514182,6.98145701,104.54,104.47,7.59653805]
[1770059514884,7.33849186,104.56,104.49,7.59653805]
[1770059515077,7.05191391,104.57,104.49,7.59653805]
[1770059516280,15.66621391,104.57,104.49,16.21693805]
[1770059516480,6.95661286,104.55,104.46,7.59653805]
[1770059516884,22.90083737,104.54,104.46,16.21943805]
[1770059517286,6.94584551,104.53,104.46,7.59653805]
[1770059517484,15.56334551,104.53,104.46,7.59653805]
[1770059518882,22.8601442,104.52,104.45,8.6237]
[1770059519083,15.52165234,104.52,104.44,7.59653805]
[1770059520389,15.52165234,104.52,104.45,7.59653805]
[1770059521585,7.33849186,104.53,104.46,7.59653805]
[1770059521779,6.94559872,104.54,104.46,7.59653805]
[1770059521982,8.6173,104.53,104.47,7.59653805]
[1770059522189,6.94559872,104.54,104.47,7.59653805]
[1770059522694,15.56199872,104.54,104.47,16.21863805]
[1770059523383,8.6173,104.53,104.47,7.59653805]
[1770059523582,6.94559872,104.54,104.47,7.59653805]
[1770059524790,28.79,104.57,104.47,7.59653805]
[1770059524992,148.20321024,104.61,104.51,7.59653805]
[1770059525189,6.91031838,104.61,104.52,7.59653805]
[1770059525389,6.91031838,104.58,104.5,8.6191]
[1770059525792,6.91031838,104.58,104.5,16.21563805]
[1770059526194,6.862893,104.56,104.48,8.6207]
[1770059526390,6.862893,104.56,104.49,7.59653805]
[1770059526696,133.9726,104.59,104.5,7.59653805]
[1770059526697,6.862893,104.58,104.5,7.59653805]
[1770059527600,6.85340198,104.57,104.5,7.59653805]
[1770059527895,14.17884495,104.57,104.5,7.59653805]
[1770059529292,6.88412651,104.61,104.52,7.59653805]
[1770059530289,133.9729,104.59,104.49,7.59653805]
[1770059530588,6.8371882,104.57,104.49,7.59653805]
[1770059531497,15.4511882,104.57,104.49,16.21663805]
[1770059531698,7.32544297,104.56,104.49,16.21663805]
[1770059532900,15.94044297,104.56,104.49,16.21663805]
[1770059534302,8.6157,104.55,104.49,7.59653805]
[1770059534498,7.32544297,104.54,104.47,16.21813805]
[1770059534701,13.88392881,104.54,104.47,16.21813805]
[1770059535204,13.88392881,104.54,104.47,7.59653805]
[1770059537402,22.50032881,104.54,104.47,16.21873805]
[1770059537606,13.88392881,104.54,104.47,7.59653805]
[1770059538605,14.86102006,104.53,104.47,7.59653805]
[1770059538808,6.24352006,104.53,104.44,7.59653805]
[1770059539109,6.24352006,104.53,104.46,8.6229]
[1770059539110,8.6182,104.52,104.46,8.6229]
[1770059539301,8.6182,104.52,104.46,16.21943805]
[1770059542512,14.5254013,104.55,104.48,7.40312532]
[1770059543410,14.5254013,104.55,104.48,16.02452532]
[1770059543913,14.5254013,104.55,104.46,134.1343]
[1770059543914,8.6163,104.55,104.49,16.02352532]
[1770059544113,15.94024297,104.56,104.49,16.02352532]
[1770059544511,8.6148,104.56,104.5,7.40312532]
[1770059544813,8.6148,104.56,104.5,16.02272532]
[1770059545212,14.47344362,104.56,104.5,7.40312532]
[1770059547509,14.47344362,104.56,104.5,16.02282532]
[1770059548717,8.6156,104.55,104.5,7.40312532]
[1770059549019,5.85864362,104.56,104.5,7.40312532]
[1770059549221,14.47354362,104.56,104.5,16.02262532]
[1770059550420,14.47354362,104.56,104.5,7.40312532]
[1770059550617,5.81052253,104.54,104.48,7.40312532]
[1770059552322,14.42712253,104.54,104.48,16.02382532]
[1770059554921,14.42712253,104.54,104.49,8.6204]
[1770059559027,5.81052253,104.54,104.49,8.6204]
[1770059559735,5.81052253,104.54,104.49,16.02352532]
[1770059560633,5.62121333,104.57,104.5,7.40312532]
[1770059561230,5.61522788,104.56,104.5,8.6196]
[1770059561431,5.61522788,104.55,104.5,8.6196]
[1770059563730,14.23092788,104.55,104.5,8.6196]
[1770059566728,14.23092788,104.55,104.49,16.02352532]
[1770059568140,8.6165,104.54,104.49,7.40312532]
[1770059568335,14.19469916,104.54,104.49,7.40312532]
[1770059572241,5.43405382,104.52,104.47,15.78798216]
[1770059578150,12.75949679,104.52,104.47,15.78798216]
[1770059581139,7.32544297,104.5,104.45,7.16598216]
[1770059581844,7.32544297,104.5,104.42,7.16598216]
[1770059581845,12.09105649,104.48,104.42,7.16598216]
[1770059582249,13.38791352,104.47,104.42,7.16598216]
[1770059582950,7.32544297,104.5,104.43,7.16598216]
[1770059583345,7.32544297,104.5,104.44,7.16598216]
[1770059583545,12.08686142,104.5,104.44,7.16598216]
[1770059584851,20.70676142,104.5,104.44,7.16598216]
[1770059586144,8.6208,104.49,104.44,7.16598216]
[1770059586350,12.08686142,104.5,104.44,7.16598216]
[1770059586553,7.32544297,104.5,104.44,7.16598216]
[1770059586853,20.75426101,104.5,104.44,7.16598216]
[1770059587054,4.80901804,104.49,104.42,7.16598216]
[1770059588350,8.6216,104.48,104.42,7.16598216]
[1770059588956,8.6222,104.47,104.42,7.16598216]
[1770059589256,4.86065501,104.48,104.42,7.16598216]
[1770059589955,12.0807058,104.47,104.42,7.16598216]
[1770059590253,12.0807058,104.45,104.39,7.16598216]
[1770059590956,20.7047058,104.45,104.39,7.16598216]
[1770059591251,4.7393944,104.47,104.39,7.16598216]
[1770059591850,4.87935036,104.5,104.43,7.16598216]
[1770059592455,2.93429949,104.46,104.43,7.16598216]
[1770059592648,2.93429949,104.46,104.4,351.02]
[1770059592848,2.93429949,104.46,104.41,7.16598216]
[1770059594858,11.55669949,104.47,104.41,7.16598216]
[1770059595556,16.43124594,104.48,104.43,7.16598216]
[1770059598064,7.80984594,104.48,104.43,7.16598216]
[1770059598263,4.87554645,104.48,104.43,7.16598216]
[1770059598763,4.87554645,104.48,104.43,15.79148216]
[1770059599062,4.87554645,104.48,104.43,18.72578165]
[1770059599562,13.26670251,104.5,104.44,18.72478165]
[1770059600462,4.59504792,104.49,104.44,18.72478165]
[1770059600661,4.59504792,104.49,104.44,15.79048216]
[1770059601160,7.5259215,104.53,104.46,10.20639737]
[1770059601362,4.59162201,104.53,104.47,10.20639737]
[1770059601760,7.5259215,104.53,104.47,7.27209788]
[1770059602863,4.5704569,104.52,104.46,2.93429949]
[1770059603068,4.5704569,104.5,104.45,7.27209788]
[1770059603768,13.1902569,104.5,104.45,7.27209788]
[1770059603966,7.50475639,104.5,104.43,18.83169737]
[1770059604366,4.5704569,104.5,104.43,15.89739788]
[1770059605462,8.6206,104.49,104.43,15.89739788]
[1770059606762,8.622,104.48,104.43,7.27209788]
[1770059606969,4.72526683,104.48,104.4,7.27209788]
[1770059607564,4.72526683,104.46,104.38,7.27209788]
[1770059607767,12.05843574,104.45,104.38,7.27209788]
[1770059608159,12.05843574,104.45,104.38,15.90099788]
[1770059608365,4.64409603,104.44,104.38,7.27209788]
[1770059609269,13.26655963,104.43,104.36,7.27209788]
[1770059610373,13.26655963,104.43,104.37,7.27209788]
[1770059614064,8.6247,104.44,104.38,7.27209788]
[1770059614260,4.87036074,104.45,104.38,7.27209788]
[1770059614563,13.49426074,104.45,104.39,7.27209788]
[1770059614765,243.43036074,104.47,104.39,7.27209788]
[1770059615863,13.40212625,104.46,104.39,15.90079788]
[1770059619671,4.76325135,104.43,104.37,7.27209788]
[1770059620268,4.76325135,104.43,104.37,15.90229788]
[1770059623073,13.38885135,104.43,104.37,15.90229788]
[1770059623664,13.38885135,104.43,104.38,7.27209788]
[1770059624368,4.76325135,104.43,104.38,15.90139788]
[1770059624577,4.90705792,104.45,104.39,7.27209788]
[1770059625074,13.53155792,104.45,104.39,7.27209788]
[1770059625373,4.90444557,104.44,104.38,15.90139788]
[1770059625972,12.23761448,104.44,104.38,15.90139788]
[1770059626271,20.86241448,104.44,104.38,15.90139788]
[1770059626569,2.93734715,104.42,104.38,15.90139788]
[1770059628380,2.93734715,104.41,104.38,7.27209788]
[1770059629175,2.93734715,104.4,104.36,15.44588061]
[1770059630073,2.93734715,104.41,104.37,7.1431972]
[1770059630480,16.30535179,104.42,104.37,7.1431972]
[1770059630677,2.93734715,104.41,104.37,7.1431972]
[1770059634775,4.58033396,104.44,104.38,7.1431972]
[1770059634972,2.93734715,104.42,104.38,7.1431972]
[1770059636780,2.93734715,104.42,104.38,15.7727972]
[1770059636984,2.93734715,104.43,104.39,7.1431972]
[1770059638480,2.93734715,104.43,104.39,15.7719972]
[1770059638676,11.56134715,104.45,104.4,7.1431972]
[1770059639183,11.56134715,104.45,104.4,15.7711972]
[1770059639778,2.93734715,104.44,104.4,15.7711972]
[1770059640484,2.93734715,104.44,104.4,7.1431972]
[1770059641380,2.93734715,104.43,104.4,7.1431972]
[1770059641682,2.93734715,104.43,104.38,7.1431972]
[1770059641683,2.93734715,104.42,104.38,7.1431972]
[1770059642678,2.93734715,104.42,104.38,15.7726972]
[1770059645381,2.93734715,104.45,104.4,7.1431972]
[1770059645587,4.58948411,104.47,104.41,7.1431972]
[1770059645588,2.93734715,104.47,104.41,7.1431972]
[1770059646285,2.93734715,104.46,104.41,7.1431972]
[1770059647390,2.93734715,104.46,104.41,15.7699972]
[1770059647588,8.6223,104.47,104.41,15.7699972]
[1770059647888,11.55964715,104.47,104.42,7.1431972]
[1770059648482,11.55705578,104.47,104.42,7.1431972]
[1770059648688,2.93475578,104.47,104.42,7.1431972]
[1770059648883,7.52423989,104.48,104.42,7.1431972]
[1770059649285,7.52423989,104.48,104.43,8.6254]
[1770059649678,7.52423989,104.48,104.43,15.7685972]
[1770059650185,4.58948411,104.48,104.43,15.7685972]
[1770059650390,11.55595578,104.49,104.44,7.1431972]
[1770059650590,2.93475578,104.48,104.44,7.1431972]
[1770059650787,2.93475578,104.47,104.44,7.1431972]
[1770059651092,2.93475578,104.47,104.42,7.1431972]
[1770059652487,2.93475578,104.47,104.42,15.7692972]
[1770059654591,11.55785578,104.46,104.42,7.1431972]
[1770059654892,2.93475578,104.45,104.42,7.1431972]
[1770059657091,2.93475578,104.45,104.39,8.6286]
[1770059657092,2.93475578,104.44,104.4,7.1431972]
[1770059659794,11.55895578,104.45,104.4,7.1431972]
[1770059661091,7.34650432,104.46,104.41,7.00657315]
[1770059661796,2.93475578,104.45,104.41,7.00657315]
[1770059664093,2.93475578,104.44,104.4,15.63447315]
[1770059665698,2.93475578,104.45,104.41,7.00657315]
[1770059665996,4.32503974,104.47,104.41,7.00657315]
[1770059665997,2.93475578,104.46,104.42,7.00657315]
[1770059667087,12.94793974,104.47,104.42,7.00657315]
[1770059667293,2.93475578,104.47,104.43,7.00657315]
[1770059667589,11.55615578,104.48,104.43,7.00657315]
[1770059669496,4.32248445,104.49,104.43,7.00657315]
[1770059669694,4.32248445,104.49,104.44,7.00657315]
[1770059669695,2.93475578,104.49,104.44,7.00657315]
[1770059669893,2.93475578,104.52,104.46,7.00657315]
[1770059670300,2.93475578,104.5,104.46,7.00657315]
[1770059670703,2.93475578,104.49,104.44,7.00657315]
[1770059671400,2.93475578,104.48,104.44,15.63117315]
[1770059671790,2.93475578,104.48,104.44,7.00657315]
[1770059672297,7.44158153,104.45,104.38,7.00657315]
[1770059672504,134.1122,104.48,104.38,7.00657315]
[1770059672505,2.93475578,104.44,104.38,7.00657315]
[1770059673307,2.93475578,104.44,104.4,7.00657315]
[1770059674806,2.93475578,104.43,104.4,7.00657315]
[1770059677404,2.93475578,104.44,104.4,7.00657315]
[1770059680408,2.93475578,104.47,104.41,7.00657315]
[1770059680609,2.93475578,104.48,104.42,7.00657315]
[1770059681311,2.93475578,104.48,104.44,7.00657315]
[1770059682310,2.93475578,104.48,104.44,15.63117315]
[1770059682710,2.93475578,104.5,104.45,7.00657315]
[1770059683018,10.09185723,104.46,104.38,7.00657315]
[1770059683220,2.93475578,104.39,104.35,7.00657315]
[1770059683620,10.09185723,104.41,104.35,7.00657315]
[1770059683823,2.93475578,104.4,104.35,7.00657315]
[1770059684414,7.15710145,104.41,104.35,7.00657315]
[1770059684819,7.34635426,104.42,104.35,7.00657315]
[1770059685415,15.97285426,104.42,104.35,15.63867315]
[1770059686016,23.12995571,104.42,104.35,15.63867315]
[1770059688120,23.12995571,104.42,104.36,7.00657315]
[1770059688317,23.12865571,104.44,104.37,7.00657315]
[1770059688819,15.78260145,104.43,104.37,7.00657315]
[1770059689021,7.15710145,104.43,104.35,6.76087495]
[1770059689217,14.46993866,104.42,104.35,6.76087495]
[1770059689417,23.09633866,104.42,104.36,6.76087495]
[1770059689918,16.67251781,104.44,104.36,6.76087495]
[1770059690221,22.90239543,104.44,104.37,15.86135698]
[1770059690417,22.90239543,104.44,104.38,7.23095698]
[1770059697324,6.93084117,104.45,104.39,7.23095698]
[1770059698325,15.55474117,104.45,104.39,7.23095698]
[1770059699419,22.90189543,104.44,104.37,15.86125698]
[1770059700014,22.90189543,104.44,104.38,7.23095698]
[1770059701424,8.6257,104.43,104.38,7.23095698]
[1770059702527,15.55654117,104.43,104.38,7.23095698]
[1770059704230,6.93084117,104.41,104.36,15.86205698]
[1770059704430,6.93084117,104.41,104.36,7.23095698]
[1770059704730,8.6263,104.42,104.36,7.23095698]
[1770059705026,8.6256,104.43,104.37,15.86125698]
[1770059705231,15.55644117,104.43,104.37,15.86125698]
[1770059705532,6.93084117,104.42,104.37,7.23095698]
[1770059705730,6.93084117,104.42,104.36,7.23095698]
[1770059706526,2.93815772,104.4,104.36,7.23095698]
[1770059707227,2.93815772,104.4,104.36,15.86215698]
[1770059707425,2.93815772,104.41,104.36,15.86215698]
[1770059708528,2.93815772,104.42,104.38,7.23095698]
[1770059709828,250.29554117,104.44,104.38,15.86015698]
[1770059710027,2.93815772,104.43,104.38,15.86015698]
[1770059710527,2.93699401,104.43,104.38,15.86015698]
[1770059711627,6.93084117,104.46,104.4,7.23095698]
[1770059711830,9.86783518,104.46,104.4,7.23095698]
[1770059712030,2.93699401,104.43,104.37,7.23095698]
[1770059712835,2.93699401,104.42,104.37,7.23095698]
[1770059713435,2.93699401,104.43,104.38,7.23095698]
[1770059713932,2.93699401,104.42,104.36,7.23095698]
[1770059714832,6.93084117,104.43,104.36,7.23095698]
[1770059715032,2.93699401,104.42,104.37,15.86125698]
[1770059715329,18.49393518,104.43,104.38,7.23095698]
[1770059717035,18.49393518,104.43,104.38,15.86045698]
[1770059718731,18.49393518,104.43,104.35,137.21369401]
[1770059718732,6.93084117,104.45,104.4,7.23095698]
[1770059718936,2.93699401,104.45,104.4,7.23095698]
[1770059719332,2.93699401,104.45,104.4,15.85885698]
[1770059719734,2.93699401,104.45,104.38,2.93699401]
[1770059719735,9.86783518,104.46,104.41,7.23095698]
[1770059721339,9.86783518,104.46,104.41,15.85795698]
[1770059721635,9.60148024,104.48,104.41,7.23095698]
[1770059721842,2.93699401,104.47,104.41,7.23095698]
[1770059722434,2.93699401,104.47,104.42,15.79259072]
[1770059722939,9.60148024,104.48,104.42,15.79259072]
[1770059724940,9.60148024,104.48,104.43,15.79149072]
[1770059728137,9.60148024,104.47,104.43,8.6251]
[1770059728939,9.60148024,104.47,104.42,15.79269072]
[1770059729239,2.93699401,104.46,104.42,7.16639072]
[1770059730731,9.60148024,104.47,104.42,7.16639072]
[1770059731134,2.93699401,104.48,104.43,7.16639072]
[1770059731332,15.28518623,104.49,104.43,7.16639072]
[1770059731333,18.22218024,104.49,104.43,7.16639072]
[1770059731536,9.60148024,104.51,104.44,7.16639072]
[1770059731731,9.60148024,104.51,104.44,10.10338473]
[1770059731937,9.60148024,104.51,104.45,7.16639072]
[1770059732443,18.22038024,104.51,104.45,15.79019072]
[1770059733442,2.93699401,104.5,104.45,15.79019072]
[1770059734642,18.22038024,104.51,104.45,15.79019072]
[1770059734843,9.60148024,104.51,104.45,15.79019072]
[1770059736039,2.93699401,104.5,104.45,15.79019072]
[1770059737443,2.93699401,104.49,104.45,15.79019072]
[1770059739750,2.93699401,104.5,104.45,15.79019072]
[1770059740042,2.93699401,104.5,104.46,8.6229]
[1770059742346,2.93699401,104.51,104.46,8.6229]
[1770059742549,9.60148024,104.51,104.46,8.6229]
[1770059743045,2.93699401,104.52,104.47,15.78849072]
[1770059745449,9.60148024,104.53,104.47,15.78849072]
[1770059746138,9.60148024,104.53,104.48,15.78769072]
[1770059747546,18.21888024,104.53,104.48,7.16639072]
[1770059748752,9.60148024,104.51,104.46,15.78909072]
[1770059750751,9.60148024,104.51,104.46,7.16639072]
[1770059750951,7.30525841,104.49,104.45,8.6237]
[1770059751252,10.24225242,104.53,104.46,7.41489007]
[1770059751454,18.86015242,104.53,104.47,16.03639007]
[1770059752050,2.93699401,104.51,104.47,7.41489007]
[1770059753145,2.93699401,104.5,104.46,8.6229]
[1770059753349,2.93699401,104.5,104.45,7.41489007]
[1770059753350,2.93699401,104.49,104.45,7.41489007]
[1770059755450,2.93699401,104.49,104.45,16.03859007]
[1770059755854,10.24225242,104.5,104.45,16.03859007]
[1770059760254,10.24225242,104.47,104.38,402.33276828]
[1770059760456,10.24225242,104.44,104.39,7.41489007]
[1770059760655,2.93699401,104.42,104.36,134.2599]
[1770059760855,2.93699401,104.41,104.37,7.41489007]
[1770059761052,2.93699401,104.4,104.37,7.41489007]
[1770059762064,2.93699401,104.39,104.35,7.41489007]
[1770059762458,2.93699401,104.38,104.35,7.41489007]
[1770059763464,7.30525841,104.41,104.33,7.41489007]
[1770059763465,2.93699401,104.37,104.33,7.41489007]
[1770059763758,2.93699401,104.36,104.31,141.73479007]
[1770059763965,2.93699401,104.35,104.32,8.6339]
[1770059764864,2.93699401,104.36,104.31,7.41489007]
[1770059765163,2.93699401,104.37,104.31,7.41489007]
[1770059766065,2.93699401,104.37,104.31,16.05019007]
[1770059766559,7.35100614,104.39,104.33,7.41489007]
[1770059766760,7.30525841,104.4,104.33,7.41489007]
[1770059768367,15.93345841,104.4,104.33,7.41489007]
[1770059769163,7.30525841,104.4,104.33,16.04839007]
[1770059771168,15.93325841,104.4,104.33,16.04839007]
[1770059773163,7.30525841,104.4,104.35,7.41489007]
[1770059773569,240.88525841,104.42,104.35,7.41489007]
[1770059773769,7.30525841,104.42,104.35,7.41489007]
[1770059774463,7.30525841,104.42,104.37,7.41489007]
[1770059774668,240.60525841,104.44,104.37,7.41489007]
[1770059774864,15.92825841,104.46,104.4,7.41489007]
[1770059775069,15.92825841,104.46,104.37,134.2463]
[1770059775070,7.30525841,104.45,104.38,7.41489007]
[1770059775469,15.92925841,104.45,104.38,16.04379007]
[1770059776569,15.92925841,104.45,104.39,7.41489007]
[1770059776867,8.6247,104.44,104.39,7.41489007]
[1770059777067,7.30525841,104.43,104.37,7.41489007]
[1770059778973,7.30525841,104.43,104.37,16.04479007]
[1770059780469,7.38893173,104.45,104.39,6.84757174]
[1770059781174,7.38893173,104.45,104.4,15.47537174]
[1770059784769,7.38893173,104.45,104.4,6.84757174]
[1770059787173,16.01283173,104.45,104.4,6.84757174]
[1770059787474,16.01283173,104.45,104.38,15.47637174]
[1770059787675,7.38893173,104.45,104.38,15.47637174]
[1770059788474,2.93678216,104.43,104.38,15.47637174]
[1770059791080,2.93678216,104.42,104.38,6.84757174]
[1770059791273,10.32571389,104.43,104.38,6.84757174]
[1770059791974,10.32571389,104.44,104.38,6.84757174]
[1770059792173,2.93678216,104.42,104.38,6.84757174]
[1770059792375,10.32571389,104.41,104.36,6.84757174]
[1770059792577,2.93678216,104.4,104.36,6.84757174]
[1770059797184,2.93678216,104.41,104.37,6.84757174]
[1770059797385,10.32571389,104.43,104.37,6.84757174]
[1770059797881,11.56158216,104.44,104.39,6.84757174]
[1770059798376,2.93678216,104.43,104.39,6.84757174]
[1770059801490,2.93678216,104.41,104.37,15.47787174]
[1770059801693,2.93678216,104.4,104.34,6.84757174]
[1770059802292,2.93678216,104.4,104.35,15.47957174]
[1770059802786,2.93678216,104.39,104.35,15.47957174]
[1770059803087,2.93678216,104.39,104.35,6.84757174]
[1770059803688,2.93678216,104.39,104.35,15.47967174]
[1770059804898,11.56478216,104.4,104.35,15.47967174]
[1770059805489,11.56478216,104.4,104.35,6.84757174]
[1770059806186,2.93678216,104.4,104.35,15.47957174]
[1770059806388,7.38893173,104.45,104.37,6.84757174]
[1770059806587,2.93678216,104.43,104.37,6.84757174]